bitfinex/quotes_ETHUSD_20250415
["timestamp","ask_amount","ask_price","bid_price","bid_amount"]
[1744690940437,5.329,1634.8,1634.5,6.11788]
[1744690940644,0.5329,1634.7,1634.5,6.11788]
[1744690940957,5.329,1634.8,1634.5,6.11788]
[1744690941248,5.329,1634.8,1634.6,6.11757]
[1744690943955,5.329,1634.8,1634.7,6.11733]
[1744690945329,5.329,1634.8,1634.6,6.11754]
[1744690945977,50.38869762,1635.1,1634.8,6.11695]
[1744690945978,48.4623,1635.1,1634.8,6.11695]
[1744690946259,47.711,1635.1,1635.0,6.1162]
[1744690946424,5.329,1635.0,1634.9,6.11634]
[1744690946822,5.329,1635.0,1634.8,6.11688]
[1744690947023,5.329,1635.0,1634.7,6.94067]
[1744690947249,18.4093696,1635.0,1634.7,6.11727]
[1744690947555,24.5257996,1635.0,1634.6,6.11764]
[1744690947950,6.11662,1634.9,1634.5,13.01693]
[1744690948560,6.11662,1634.9,1634.5,13.01672]
[1744690948763,6.11662,1634.9,1634.6,6.11765]
[1744690948967,8.56922096,1634.9,1634.6,6.11765]
[1744690949943,2.45260096,1634.9,1634.7,6.11718]
[1744690950148,12.2931596,1635.0,1634.7,6.11718]
[1744690950149,12.2931596,1635.0,1634.8,6.11694]
[1744690950350,5.329,1635.0,1634.8,12.2337]
[1744690950550,5.329,1635.0,1634.8,6.11676]
[1744690950739,5.326,1634.9,1634.8,6.11676]
[1744690952471,6.92479,1634.8,1634.5,6.11792]
[1744690952770,0.692479,1634.7,1634.5,6.11792]
[1744690952949,6.92479,1634.8,1634.5,6.11792]
[1744690953349,6.92479,1634.8,1634.6,6.11769]
[1744690953350,0.8078,1634.8,1634.6,6.11769]
[1744690953568,5.326,1634.9,1634.6,6.11769]
[1744690953773,5.326,1634.9,1634.6,12.2352]
[1744690954071,5.326,1634.8,1634.7,6.11727]
[1744690955883,5.326,1634.8,1634.6,6.11754]
[1744690956872,5.326,1634.8,1634.6,6.11752]
[1744690957166,5.326,1634.8,1634.7,6.11733]
[1744690958960,6.1249,1634.8,1634.5,6.11791]
[1744690959275,0.61249,1634.7,1634.5,6.11791]
[1744690959678,6.1249,1634.8,1634.5,6.11791]
[1744690964195,6.1249,1634.8,1634.6,6.11758]
[1744690965392,6.1249,1634.8,1634.5,12.23584]
[1744690965887,6.1249,1634.8,1634.5,6.11789]
[1744690966192,5.326,1634.7,1634.5,6.11789]
[1744690969695,12.05601,1634.7,1634.3,6.93276]
[1744690969898,12.05601,1634.7,1634.3,13.05138]
[1744690970198,5.93849,1634.7,1634.4,6.11841]
[1744690970898,5.93849,1634.7,1634.4,12.23665]
[1744690971602,5.93849,1634.7,1634.4,6.11824]
[1744690979921,12.05587,1634.7,1634.4,6.11824]
[1744690980623,3.0,1634.6,1634.4,6.11824]
[1744690981123,0.7788,1634.5,1634.2,6.11908]
[1744690981496,0.7788,1634.5,1634.2,12.2381]
[1744690981699,11.402227,1634.6,1634.3,6.1187]
[1744690982661,6.11825,1634.5,1634.1,6.11945]
[1744690982792,1.423725,1634.4,1634.1,6.11942]
[1744690982991,5.324,1634.3,1634.2,6.11916]
[1744690986849,5.324,1634.3,1634.1,6.11942]
[1744690987648,5.324,1634.3,1634.1,12.23885]
[1744690988550,5.324,1634.3,1634.1,6.11942]
[1744690989460,5.93795,1634.3,1634.0,6.11988]
[1744690989619,12.0569,1634.3,1634.0,6.11988]
[1744690990020,6.11988,1634.1,1633.5,0.7901]
[1744690990259,6.11988,1634.1,1633.8,6.12069]
[1744690990453,6.11985,1634.1,1633.7,12.24196]
[1744690990657,7.420611,1634.1,1633.7,12.24196]
[1744690992456,7.420611,1634.1,1633.7,6.12089]
[1744690992658,7.420611,1634.1,1633.5,6.91179]
[1744690992659,6.12055,1633.9,1633.5,6.91179]
[1744690992838,6.1479,1633.8,1633.5,6.12169]
[1744690993936,12.26861,1633.8,1633.5,6.12169]
[1744690994862,6.1479,1633.8,1633.5,6.12169]
[1744690995459,6.1479,1633.8,1633.4,6.87256]
[1744690995659,0.61479,1633.7,1633.4,6.87256]
[1744690996262,0.61479,1633.7,1633.4,12.99462]
[1744690996477,0.61479,1633.7,1633.5,6.12177]
[1744690997370,0.61479,1633.7,1633.4,6.87246]
[1744690998182,0.61479,1633.7,1633.4,6.87245]
[1744690998393,0.61479,1633.7,1633.4,6.87238]
[1744690998570,0.61479,1633.7,1633.5,6.12179]
[1744690999594,0.61479,1633.7,1633.4,6.12198]
[1744690999955,0.61479,1633.7,1633.5,6.12166]
[1744691000161,6.1479,1633.8,1633.5,13.01993]
[1744691000675,5.325,1633.8,1633.7,6.12107]
[1744691001189,6.325,1633.8,1633.7,6.12107]
[1744691001569,6.325,1633.8,1633.6,12.24255]
[1744691004085,6.325,1633.8,1633.7,6.93087]
[1744691005058,6.325,1633.8,1633.6,13.05232]
[1744691006201,6.325,1633.8,1633.7,6.12107]
[1744691007113,10.7219,1633.8,1633.3,6.1225]
[1744691007261,0.7644,1633.6,1633.3,12.24492]
[1744691007467,0.7644,1633.6,1633.3,6.12242]
[1744691008000,6.88588,1633.6,1633.2,6.89541]
[1744691008198,8.186579,1633.6,1633.2,6.12261]
[1744691009501,14.308289,1633.6,1633.2,6.12261]
[1744691011283,2.0,1633.5,1633.2,6.12261]
[1744691011479,5.324,1633.4,1633.2,6.12261]
[1744691011680,6.139,1633.4,1633.1,6.17331]
[1744691012007,7.565096,1633.4,1633.1,6.17331]
[1744691012217,13.687466,1633.4,1633.1,0.05]
[1744691012612,6.12261,1633.3,1633.1,0.05]
[1744691014231,0.7694,1633.2,1633.1,0.05]
[1744691014432,6.89234,1633.2,1633.1,0.05]
[1744691014732,8.193835,1633.2,1633.1,0.05]
[1744691015334,10.87153262,1633.2,1633.1,0.05]
[1744691016033,11.33471376,1633.2,1633.1,0.05]
[1744691016202,13.33471376,1633.2,1633.1,0.05]
[1744691016400,16.88471376,1633.2,1633.1,0.05]
[1744691017702,13.65701614,1633.2,1633.1,0.05]
[1744691017898,15.518835,1633.2,1633.1,0.05]
[1744691018217,16.97854247,1633.2,1633.1,0.05]
[1744691020434,17.52854247,1633.2,1633.1,0.05]
[1744691020647,16.97854247,1633.2,1633.1,0.05]
[1744691021325,17.97854247,1633.2,1633.1,0.05]
[1744691029449,18.52854247,1633.2,1633.1,0.05]
[1744691031458,20.09948057,1633.2,1633.1,0.05]
[1744691032631,28.91717819,1633.2,1633.1,0.05]
[1744691034067,7.49197,1632.9,1632.8,0.55]
[1744691034368,11.53124962,1632.9,1632.8,0.55]
[1744691035741,15.27229906,1632.9,1632.8,0.55]
[1744691036065,16.10218772,1632.9,1632.8,0.55]
[1744691038270,6.12609,1632.4,1632.2,1.1907637]
[1744691038435,5.328,1632.3,1632.2,1.1907637]
[1744691040276,5.328,1632.3,1632.2,7.3174637]
[1744691040476,2.67769762,1632.8,1632.3,0.7885]
[1744691040780,5.327,1632.7,1632.5,0.7885]
[1744691040977,6.12519,1632.6,1632.5,0.7885]
[1744691041277,6.12562,1632.5,1632.3,0.8053]
[1744691041772,7.81691392,1632.5,1632.2,7.3400537]
[1744691042257,13.94276392,1632.5,1632.2,1.2133637]
[1744691042573,6.59183292,1632.5,1632.2,1.2133637]
[1744691042785,6.59183292,1632.5,1632.2,7.3400537]
[1744691042976,0.46620292,1632.5,1632.3,0.8053]
[1744691043144,3.0,1632.4,1632.3,0.8053]
[1744691043551,17.92837762,1632.6,1632.3,0.8053]
[1744691043871,6.12558,1632.5,1632.3,0.8053]
[1744691044784,12.2514,1632.5,1632.3,0.8053]
[1744691044985,6.12558,1632.5,1632.3,0.8053]
[1744691045290,6.12609,1632.4,1632.2,0.3351537]
[1744691045486,5.327,1632.3,1632.2,0.3351537]
[1744691045670,13.211251,1632.3,1632.2,0.3351537]
[1744691045854,7.084931,1632.3,1632.2,0.3351537]
[1744691046054,5.327,1632.3,1632.2,0.3351537]
[1744691046665,5.327,1632.3,1632.2,6.4616337]
[1744691048085,12.71113087,1632.7,1632.3,6.12628]
[1744691048284,5.327,1632.6,1632.3,6.87878]
[1744691048670,5.327,1632.5,1632.3,13.00491]
[1744691048858,6.58607087,1632.7,1632.3,13.00491]
[1744691049054,5.327,1632.6,1632.3,13.00491]
[1744691049687,5.327,1632.5,1632.4,6.12594]
[1744691050060,50.773,1632.8,1632.7,0.7946]
[1744691050263,62.2258702,1632.8,1632.6,0.7946]
[1744691050565,12.24989,1632.7,1632.4,0.8305]
[1744691050985,6.12482,1632.7,1632.4,0.8305]
[1744691051174,12.24989,1632.7,1632.4,0.8305]
[1744691052291,6.1254,1632.6,1632.4,0.8305]
[1744691052592,6.73794,1632.6,1632.4,0.8305]
[1744691053671,0.61254,1632.6,1632.4,0.8305]
[1744691053975,7.12485,1632.7,1632.4,0.8305]
[1744691054177,7.57281758,1632.7,1632.4,0.8305]
[1744691054892,1.44796758,1632.7,1632.4,13.0823]
[1744691055094,1.44796758,1632.7,1632.6,0.8235]
[1744691056096,7.57278758,1632.7,1632.5,0.7596]
[1744691056291,9.97146392,1632.7,1632.4,0.7596]
[1744691057295,9.97146392,1632.7,1632.4,6.88554]
[1744691059764,1.44796758,1632.7,1632.4,6.88542]
[1744691059965,1.0,1632.7,1632.5,6.12534]
[1744691060177,1.0,1632.7,1632.6,0.7726]
[1744691060962,6.327,1632.7,1632.6,6.89779]
[1744691061172,1.0,1632.7,1632.6,6.94819]
[1744691061787,53.1,1632.8,1632.7,6.12482]
[1744691061997,53.1,1632.8,1632.7,6.94782]
[1744691062612,5.327,1633.2,1633.1,6.12332]
[1744691062904,5.327,1633.2,1633.1,6.92202]
[1744691063402,47.774,1633.5,1633.4,6.12219]
[1744691063569,5.327,1633.5,1633.4,6.90249]
[1744691064593,5.327,1633.5,1633.4,0.7803]
[1744691065105,5.327,1633.5,1633.4,6.90249]
[1744691068611,8.327,1633.5,1633.4,6.90249]
[1744691069830,5.327,1633.5,1633.4,6.90249]
[1744691071329,5.327,1633.5,1633.4,0.7803]
[1744691071511,5.327,1633.5,1633.2,13.01635]
[1744691071828,5.327,1633.5,1633.4,6.12219]
[1744691072184,5.327,1633.5,1633.3,6.12235]
[1744691072389,5.327,1633.5,1633.3,12.2447]
[1744691072727,5.327,1633.5,1633.4,6.12219]
[1744691073628,8.327,1633.5,1633.4,6.12219]
[1744691074321,5.327,1633.5,1633.4,6.12219]
[1744691075002,5.327,1633.5,1633.3,6.12235]
[1744691075884,5.327,1633.5,1633.4,6.12219]
[1744691076534,5.327,1633.5,1633.4,6.89229]
[1744691079223,5.324,1633.7,1633.6,6.12144]
[1744691079450,5.324,1633.7,1633.6,6.87244]
[1744691079836,5.324,1634.0,1633.8,6.12032]
[1744691080464,5.324,1634.0,1633.8,12.24081]
[1744691080660,5.324,1634.0,1633.8,6.94552]
[1744691082058,5.324,1634.0,1633.9,6.12032]
[1744691082664,47.768,1634.2,1633.9,6.12032]
[1744691082879,53.091,1634.2,1634.1,6.11957]
[1744691084918,53.091,1634.2,1634.1,6.88337]
[1744691086377,6.1196,1634.1,1633.8,6.91876]
[1744691086524,6.1196,1634.1,1633.7,6.12104]
[1744691086525,14.88061762,1634.1,1633.7,0.8026]
[1744691086867,6.12013,1634.0,1633.6,12.24267]
[1744691087068,12.20292,1634.1,1633.7,6.12104]
[1744691087365,12.20292,1634.1,1633.7,12.24197]
[1744691087538,1.220292,1634.0,1633.7,6.12093]
[1744691087722,7.340242,1634.0,1633.7,6.12093]
[1744691087944,7.340242,1634.0,1633.6,6.12142]
[1744691088149,7.340242,1634.0,1633.7,6.12106]
[1744691088445,7.340242,1634.0,1633.3,6.87415]
[1744691088446,6.12073,1633.8,1633.3,6.87415]
[1744691088690,5.322,1633.7,1633.4,6.12196]
[1744691088844,5.322,1633.7,1633.4,12.24401]
[1744691089257,5.322,1633.7,1633.4,6.12196]
[1744691089860,5.322,1633.7,1633.4,6.12219]
[1744691090061,5.8542,1633.7,1633.4,12.24438]
[1744691090693,5.8542,1633.7,1633.5,6.1218]
[1744691091789,5.8542,1633.7,1633.4,6.12219]
[1744691092290,5.8542,1633.7,1633.4,12.24416]
[1744691093248,11.9753,1633.7,1633.4,6.12197]
[1744691093478,1.19753,1633.6,1633.4,6.12197]
[1744691094248,5.8542,1633.7,1633.4,6.12197]
[1744691094878,11.97549,1633.7,1633.3,6.87417]
[1744691095084,0.7564,1633.6,1633.3,6.87417]
[1744691095848,6.87787,1633.6,1633.3,6.87417]
[1744691096387,0.7564,1633.6,1633.3,6.87417]
[1744691096590,2.029589,1633.6,1633.3,6.87417]
[1744691096887,5.323,1633.5,1633.3,6.87417]
[1744691099494,8.323,1633.5,1633.3,6.87417]
[1744691099790,5.323,1633.5,1633.3,6.87417]
[1744691100550,11.44486,1633.5,1633.2,6.12294]
[1744691100755,13.4044519,1633.5,1633.2,6.12294]
[1744691101862,7.2825919,1633.5,1633.2,12.24571]
[1744691102064,5.323,1633.5,1633.3,6.12239]
[1744691102281,5.323,1633.5,1633.3,12.24481]
[1744691105093,5.323,1633.5,1633.4,6.12219]
[1744691106510,5.323,1633.5,1633.4,6.92179]
[1744691106666,5.322,1633.8,1633.7,6.12091]
[1744691107372,5.322,1633.8,1633.6,6.12129]
[1744691107373,6.0906,1633.8,1633.6,6.12129]
[1744691108677,6.0906,1633.8,1633.5,6.12176]
[1744691108877,12.21131,1633.8,1633.5,6.12176]
[1744691109478,3.0,1633.7,1633.5,6.12163]
[1744691109802,6.0906,1633.8,1633.5,6.12163]
[1744691109989,0.60906,1633.7,1633.5,6.12163]
[1744691110303,0.60906,1633.7,1633.4,6.12213]
[1744691110521,6.73019,1633.7,1633.4,6.12213]
[1744691110671,6.94464,1633.5,1633.0,6.93678]
[1744691111007,18.261204,1633.4,1633.0,6.93678]
[1744691111193,6.12264,1633.3,1632.9,6.12394]
[1744691111392,0.7601,1633.2,1632.9,12.24786]
[1744691111600,0.7601,1633.2,1633.0,6.12366]
[1744691113607,0.7601,1633.2,1632.9,6.12392]
[1744691113811,1.448374,1633.2,1632.9,12.24778]
[1744691114108,6.813664,1633.4,1633.1,6.83722]
[1744691114407,6.1192,1633.4,1633.1,6.83722]
[1744691114785,6.1192,1633.4,1633.2,6.12272]
[1744691116179,6.1192,1633.4,1633.1,6.12329]
[1744691116380,6.1192,1633.4,1633.1,6.12313]
[1744691116581,0.61192,1633.3,1633.1,6.12313]
[1744691116783,0.61192,1633.3,1633.0,6.93156]
[1744691116977,0.61192,1633.3,1633.0,12.24714]
[1744691117182,0.61192,1633.3,1633.1,6.12331]
[1744691120322,0.61192,1633.3,1633.1,12.24648]
[1744691120611,6.1192,1633.4,1633.2,6.12276]
[1744691120792,9.1192,1633.4,1633.3,6.12257]
[1744691121613,8.322,1633.4,1633.2,6.12276]
[1744691121820,8.322,1633.4,1633.2,12.24557]
[1744691123821,8.322,1633.4,1633.2,12.2455]
[1744691124020,6.12034,1633.9,1633.5,6.12182]
[1744691124226,3.0,1633.7,1633.6,6.1213]
[1744691124586,3.0,1633.7,1633.5,6.12182]
[1744691125022,3.0,1633.7,1633.4,12.24428]
[1744691125324,0.7826,1633.6,1633.3,6.12256]
[1744691126431,0.7826,1633.6,1633.4,6.12219]
[1744691126594,1.23057157,1633.6,1633.4,6.12219]
[1744691128227,5.323,1633.5,1633.4,6.12219]
[1744691129119,5.323,1633.5,1633.3,12.24484]
[1744691129327,5.323,1633.5,1633.4,6.12219]
[1744691131433,5.97835716,1633.5,1633.3,6.12242]
[1744691131923,5.323,1633.5,1633.4,0.8068]
[1744691132127,5.323,1633.5,1633.4,6.92899]
[1744691133441,0.7827,1633.9,1633.8,6.12061]
[1744691133748,6.1047,1633.9,1633.7,12.24182]
[1744691133943,5.322,1633.9,1633.8,6.1207]
[1744691135410,0.8285,1633.8,1633.6,6.12135]
[1744691135634,0.8285,1633.8,1633.6,12.24263]
[1744691136639,0.8285,1633.8,1633.7,6.12107]
[1744691136846,5.322,1633.9,1633.8,6.1207]
[1744691137145,10.75550746,1633.9,1633.8,6.1207]
[1744691137641,5.322,1633.9,1633.8,6.1207]
[1744691143545,5.322,1633.9,1633.7,6.12091]
[1744691145245,5.322,1633.9,1633.4,6.12205]
[1744691145246,6.94404,1633.8,1633.4,6.12205]
[1744691145434,0.8231,1633.8,1633.7,6.12107]
[1744691145638,1.43761,1633.8,1633.7,6.12107]
[1744691146029,1.43761,1633.8,1633.6,6.12128]
[1744691146221,6.12109,1633.7,1633.3,6.12257]
[1744691147166,6.12109,1633.7,1633.4,6.12214]
[1744691148366,0.8234,1633.6,1633.2,6.12293]
[1744691148573,5.321,1633.5,1633.2,12.24569]
[1744691148858,5.321,1633.5,1632.9,8.80176762]
[1744691148859,6.12283,1633.3,1632.9,6.12406]
[1744691149067,0.7987,1633.1,1632.8,6.95202]
[1744691149216,6.1197,1633.1,1632.8,6.95202]
[1744691150163,6.1197,1633.1,1632.8,6.12432]
[1744691150449,7.956285,1633.1,1632.8,6.12432]
[1744691151436,3.0,1633.0,1632.8,6.12432]
[1744691151960,7.956285,1633.1,1632.8,6.12432]
[1744691152371,7.956285,1633.1,1632.7,6.12477]
[1744691152554,14.079765,1633.1,1632.7,12.24942]
[1744691152866,14.079765,1633.1,1632.8,6.12442]
[1744691154576,14.079765,1633.1,1632.7,12.24933]
[1744691155044,5.321,1633.1,1633.0,6.12369]
[1744691155742,5.321,1633.1,1633.0,6.88679]
[1744691155943,1.2234373,1633.5,1633.0,0.7631]
[1744691156155,5.322,1633.4,1633.2,6.12275]
[1744691156556,5.322,1633.4,1633.2,12.24554]
[1744691157055,5.322,1633.4,1633.2,6.12275]
[1744691158562,6.12322,1633.2,1632.8,6.12426]
[1744691158863,0.8151,1633.1,1632.8,6.12426]
[1744691159061,5.323,1633.0,1632.8,6.12426]
[1744691160666,5.323,1633.0,1632.8,6.18549953]
[1744691160825,5.323,1633.0,1632.9,6.12407]
[1744691161661,5.323,1633.0,1632.9,6.90917]
[1744691162033,6.1048,1633.3,1633.0,6.12332]
[1744691162235,6.1048,1633.3,1633.1,6.12327]
[1744691162551,12.22751,1633.3,1633.0,6.12332]
[1744691162741,12.83799,1633.3,1633.0,6.12332]
[1744691163362,12.83799,1633.3,1632.9,6.12404]
[1744691163573,0.7818,1633.1,1632.9,6.12404]
[1744691163744,0.7818,1633.1,1632.7,6.12477]
[1744691163945,6.90527,1633.1,1632.8,6.12443]
[1744691164240,8.208096,1633.1,1632.8,6.12443]
[1744691165060,8.208096,1633.1,1632.7,12.24954]
[1744691165266,7.426296,1633.1,1632.7,6.12477]
[1744691165466,0.8064,1633.0,1632.7,6.12477]
[1744691165663,5.322,1632.9,1632.7,6.12477]
[1744691165870,5.322,1632.9,1632.7,12.24938]
[1744691167971,5.322,1632.9,1632.7,6.12461]
[1744691168436,5.322,1632.9,1632.8,6.12444]
[1744691170875,5.323,1633.3,1633.2,6.12294]
[1744691171043,5.323,1633.3,1633.0,12.24732]
[1744691171247,2.67769762,1633.1,1632.6,0.8038]
[1744691171439,6.94742,1633.0,1632.6,12.25017]
[1744691171645,5.323,1632.9,1632.7,6.12481]
[1744691172077,5.323,1632.9,1632.6,6.12498]
[1744691172376,0.7558,1632.8,1632.5,6.12537]
[1744691173248,0.7558,1632.8,1632.5,12.25081]
[1744691173681,0.7558,1632.8,1632.6,6.12508]
[1744691174058,5.323,1632.9,1632.6,6.12508]
[1744691174255,12.82509638,1632.9,1632.5,6.12537]
[1744691174585,6.70090638,1632.9,1632.6,6.12499]
[1744691175348,13.28261177,1632.9,1632.5,6.12536]
[1744691175749,13.28261177,1632.9,1632.5,12.25079]
[1744691175982,13.28261177,1632.9,1632.5,6.12536]
[1744691176184,1.32826118,1632.8,1632.5,6.12536]
[1744691176488,0.8178,1632.7,1632.5,6.12536]
[1744691178084,0.8178,1632.7,1632.3,6.12595]
[1744691178085,6.94294,1632.7,1632.3,6.12595]
[1744691178590,6.94284,1632.7,1632.3,6.12595]
[1744691178886,6.94284,1632.7,1632.3,12.25208]
[1744691179103,8.38239512,1632.7,1632.3,12.25208]
[1744691179888,8.38239512,1632.7,1632.4,6.12587]
[1744691180383,8.38239512,1632.7,1632.3,6.12595]
[1744691180884,0.7639,1632.6,1632.3,12.25213]
[1744691181084,5.324,1632.5,1632.3,12.25213]
[1744691181592,5.324,1632.5,1632.3,12.25206]
[1744691182289,5.324,1632.5,1632.3,6.12595]
[1744691183194,5.324,1632.5,1632.3,12.25213]
[1744691183490,5.324,1632.5,1632.3,6.12595]
[1744691187190,12.670914,1632.5,1632.2,0.3351537]
[1744691187371,6.95316,1632.4,1632.2,0.3351537]
[1744691188659,6.12632,1632.3,1632.2,0.3351537]
[1744691188863,6.90042,1632.3,1632.2,0.3351537]
[1744691191708,0.7741,1632.3,1632.2,0.3351537]
[1744691192082,1.22314182,1632.3,1632.2,0.3351537]
[1744691192279,0.8303,1632.5,1632.3,6.12612]
[1744691192479,5.324,1632.4,1632.2,6.4617337]
[1744691192912,5.324,1632.4,1632.2,12.5882337]
[1744691193112,5.324,1632.4,1632.3,6.12632]
[1744691193505,5.93943,1632.4,1632.2,0.3351537]
[1744691193684,6.74743,1632.4,1632.2,0.3351537]
[1744691194086,6.93432,1632.3,1632.2,0.3351537]
[1744691194285,9.93432,1632.3,1632.2,0.3351537]
[1744691195184,0.808,1632.3,1632.2,6.4618537]
[1744691195384,6.1149,1632.4,1632.2,6.4618537]
[1744691195583,7.38464749,1632.4,1632.2,0.3351537]
[1744691197011,13.51061749,1632.4,1632.2,0.3351537]
[1744691197216,19.63677749,1632.4,1632.2,0.3351537]
[1744691197417,13.51061749,1632.4,1632.2,0.3351537]
[1744691200687,19.63676749,1632.4,1632.2,0.3351537]
[1744691200887,8.08999675,1632.3,1632.2,0.3351537]
[1744691201620,8.90539675,1632.3,1632.2,0.3351537]
[1744691207586,2.77907675,1632.3,1632.2,0.3351537]
[1744691207889,5.325,1632.3,1632.2,0.3351537]
[1744691208589,3.7518,1632.4,1632.2,0.3351537]
[1744691208791,5.325,1632.3,1632.2,6.4615637]
[1744691209195,0.8184,1632.6,1632.3,6.12632]
[1744691209398,49.21655512,1632.7,1632.4,6.12567]
[1744691209399,5.325,1632.5,1632.4,6.12567]
[1744691209624,48.5954,1632.7,1632.4,12.25134]
[1744691209927,53.9204,1632.7,1632.5,6.12557]
[1744691210297,53.102,1632.7,1632.5,6.12557]
[1744691210633,5.325,1632.7,1632.6,6.12519]
[1744691212132,5.325,1632.7,1632.5,6.1255]
[1744691212439,5.325,1632.7,1632.6,6.12519]
[1744691212835,5.325,1632.7,1632.5,6.9392]
[1744691213142,5.325,1632.7,1632.5,13.06454]
[1744691213506,5.325,1632.7,1632.6,6.12519]
[1744691214550,5.325,1632.7,1632.5,6.93904]
[1744691214745,5.325,1632.7,1632.5,6.12534]
[1744691215129,5.325,1632.7,1632.4,13.01651]
[1744691215942,5.325,1632.7,1632.5,6.12556]
[1744691217642,5.325,1632.7,1632.5,12.25094]
[1744691218038,5.325,1632.7,1632.6,6.12519]
[1744691218224,6.325,1632.7,1632.6,6.12519]
[1744691223466,6.325,1632.7,1632.6,6.91979]
[1744691224233,5.325,1632.7,1632.6,6.91979]
[1744691226666,5.325,1632.7,1632.6,9.59748762]
[1744691227071,59.57893762,1633.4,1633.2,6.12294]
[1744691227072,47.779,1633.4,1633.2,6.12294]
[1744691227368,5.323,1633.2,1633.1,6.12324]
[1744691227572,5.323,1633.2,1633.1,12.24648]
[1744691228137,47.779,1633.4,1633.2,6.12265]
[1744691228337,53.102,1633.4,1633.2,6.12265]
[1744691228974,53.102,1633.4,1633.1,6.1233]
[1744691229446,53.102,1633.4,1633.1,12.2466]
[1744691229763,53.102,1633.4,1633.2,6.1229]
[1744691229933,53.102,1633.4,1633.2,12.24565]
[1744691230341,53.102,1633.4,1633.2,6.12275]
[1744691231637,53.102,1633.4,1633.2,12.24554]
[1744691231940,53.102,1633.4,1633.3,6.12257]
[1744691233243,56.102,1633.4,1633.3,6.12257]
[1744691233569,5.323,1633.4,1633.3,6.12257]
[1744691234270,5.322,1633.7,1633.6,6.12144]
[1744691248305,11.44313,1633.7,1633.1,8.80100762]
[1744691248510,0.7852,1633.6,1633.3,12.24481]
[1744691248674,3.7852,1633.6,1633.3,12.24481]
[1744691249170,0.7852,1633.6,1633.3,6.12238]
[1744691249487,6.90671,1633.6,1633.3,6.12238]
[1744691249687,0.7852,1633.6,1633.3,12.24483]
[1744691250307,0.7852,1633.6,1633.3,6.12238]
[1744691251775,0.7852,1633.6,1633.4,6.12218]
[1744691252008,0.7852,1633.6,1633.4,12.24419]
[1744691254210,5.322,1633.7,1633.6,6.12144]
[1744691255411,5.322,1633.7,1633.5,6.12166]
[1744691256013,5.322,1633.7,1633.5,6.12162]
[1744691256197,5.322,1633.7,1633.6,6.12144]
[1744691258486,5.322,1633.7,1633.5,6.12162]
[1744691259309,5.322,1633.7,1633.5,12.24328]
[1744691259717,5.322,1633.7,1633.6,6.12144]
[1744691271713,6.0916,1633.9,1633.8,6.1207]
[1744691272729,6.0916,1633.9,1633.7,12.24189]
[1744691272909,6.0916,1633.9,1633.7,6.12094]
[1744691273105,5.319,1633.9,1633.7,6.12087]
[1744691273306,5.319,1633.9,1633.8,6.1207]
[1744691273503,5.319,1633.9,1633.7,6.12087]
[1744691274550,5.319,1633.9,1633.8,6.1207]
[1744691275962,5.319,1633.9,1633.7,6.12087]
[1744691277317,5.319,1633.9,1633.7,12.2418]
[1744691278351,5.319,1633.9,1633.8,6.1207]
[1744691283974,5.319,1633.9,1633.6,6.12136]
[1744691284552,5.319,1633.9,1633.6,12.24261]
[1744691284747,5.319,1633.9,1633.7,6.12105]
[1744691285680,5.319,1633.9,1633.8,6.1207]
[1744691288182,0.7747,1633.8,1633.5,6.12167]
[1744691288479,0.7747,1633.8,1633.6,6.12127]
[1744691288640,6.0937,1633.9,1633.6,12.24254]
[1744691288842,1.0,1633.8,1633.6,12.24254]
[1744691289186,1.0,1633.8,1633.6,6.12127]
[1744691289384,1.0,1633.8,1633.6,12.24257]
[1744691289971,1.0,1633.8,1633.7,6.12107]
[1744691291679,1.0,1633.8,1633.6,12.24259]
[1744691293280,1.0,1633.8,1633.6,6.12127]
[1744691294043,1.0,1633.8,1633.6,6.12125]
[1744691294283,1.0,1633.8,1633.6,12.2425]
[1744691294779,1.0,1633.8,1633.3,9.12256]
[1744691294780,0.8261,1633.7,1633.2,0.7644]
[1744691294964,6.94731,1633.7,1633.3,12.24477]
[1744691296786,13.06861,1633.7,1633.3,6.12238]
[1744691297085,12.24251,1633.7,1633.3,6.12238]
[1744691297385,6.88082,1633.6,1633.3,6.12238]
[1744691297957,5.317,1633.5,1633.2,12.24567]
[1744691298158,11.4389,1633.5,1633.1,6.94837]
[1744691298376,0.7979,1633.4,1633.1,6.12327]
[1744691301085,6.92014,1633.4,1633.0,6.12364]
[1744691301651,0.8331,1633.2,1632.9,6.12404]
[1744691301856,6.95606,1633.2,1632.9,6.12404]
[1744691302176,5.318,1633.1,1632.9,6.12404]
[1744691303087,5.318,1633.1,1632.8,12.24869]
[1744691303286,5.318,1633.1,1632.9,6.12405]
[1744691303678,5.318,1633.1,1632.8,6.12428]
[1744691304086,11.44133,1633.1,1632.8,6.12428]
[1744691304293,0.7738,1633.0,1632.8,6.12428]
[1744691305270,6.89761,1633.0,1632.6,6.12503]
[1744691305574,6.89761,1633.0,1632.7,6.12468]
[1744691308189,0.7738,1632.9,1632.5,6.12554]
[1744691308390,13.02254,1632.9,1632.5,6.12554]
[1744691308593,14.324794,1632.9,1632.5,6.12554]
[1744691308756,8.200354,1632.9,1632.5,6.12554]